[Event "3rd President Cup-A 2024"]
[Site "Tashkent"]
[Date "2024.11.26"]
[Round "6.6"]
[White "Zemlyanskii, Ivan"]
[Black "Maghsoodloo, Parham"]
[Result "0-1"]
[ECO "B90"]
[WhiteElo "2543"]
[BlackElo "2712"]
[Annotator "TA"]
[PlyCount "80"]
[EventDate "2024.11.22"]
[EventType "swiss"]
[EventCountry "UZB"]
[SourceTitle "playchess.com"]
[Source "ChessBase"]
[SourceQuality "1"]
[TimeControl "5400+30"]

{[%evp 27,80,18,12,0,0,0,15,0,4,0,0,-13,70,-13,32,-5,0,0,0,0,145,133,156,122,110,75,76,74,76,-43,-33,-131,-45,-342,-137,-136,-136,-326,-328,-758,-752,-725,-672,-1476,-1305,-5739,-1010,-1190,-986,-6095,-6095,-5206,-5206,-5206,-5197]} 1. e4 {[%emt 0:00:03]} c5 {[%emt 0:00:04]} 2. Nf3 {[%emt 0:00:05]} d6 {[%emt 0:00:03]} 3. d4 {[%emt 0:00:09]} cxd4 {[%emt 0:00:04]} 4. Nxd4 {[%emt 0:00:03]} Nf6 {[%emt 0:00:06]} 5. Nc3 {[%emt 0:00:04]} a6 {[%emt 0:00:03]} 6. Be3 {[%emt 0:00:10]} e5 {[%emt 0:00:54]} 7. Nb3 {[%emt 0:00:06]} Be6 {[%emt 0:01:04]} 8. f3 {[%emt 0:00:16]} h5 {[%emt 0:01:40] is cutting edge theory.} 9. Nd5 {[%emt 0:00:33] B90: Sicilian Najdorf: Unusual White 6th moves, 6 Be3 Ng4 and 6 Be3 e5.} Bxd5 {[%emt 0:01:13]} 10. exd5 {[%emt 0:00:06]} Nbd7 {[%emt 0:00:10]} 11. Qd2 {[%emt 0:00:10]} g6 {[%emt 0:02:45]} 12. O-O-O {[%emt 0:00:13]} Rc8 {[%emt 0:00:08]} 13. Kb1 {[%emt 0:01:22]} Bg7 {[%emt 0:00:08]} 14. Rg1 $146 {[%emt 0:04:57]} ({Predecessor:} 14. Be2 Qc7 15. Rc1 Kf8 16. c4 b6 17. g4 Nc5 18. g5 Nfd7 19. Na1 Kg8 20. Nc2 {1-0 Aronian,L (2759)-Sevian,S (2684) Chess.com Rapid CGC KO 2022 (3.3)}) 14... e4 {[%emt 0:16:37]} 15. Qb4 {[%emt 0:26:45]} Qc7 {[%emt 0:02:23]} 16. c4 {[%emt 0:07:40]} b6 {[%emt 1:11:08]} 17. Nd4 {[%emt 0:56:18]} O-O {[%emt 0:00:00]} 18. Nc6 {[%emt 0:00:00]} Rfe8 {[%emt 0:01:00]} 19. Bd4 {[%emt 0:01:00]} e3 {[%emt 0:00:30]} (19... Ne5 $11) 20. Re1 {[%emt 0:00:30]} (20. Bd3 $14) 20... b5 {[%emt 0:00:00]} 21. Rxe3 {[%emt 0:00:00]} (21. Bxe3 Ne5 22. Qd2 (22. cxb5 $2 Nxd5 23. Qb3 Nxe3 $19) 22... Nxc4 (22... bxc4 23. Nxe5 c3 24. Qxc3 $17) 23. Bxc4 bxc4 $17) 21... Rxe3 {[%emt 0:00:00]} 22. Bxe3 {[%emt 0:00:00]} Nb6 23. Qb3 {[%emt 0:01:30]} Re8 {[%emt 0:00:00]} (23... Nxc4 $11 {remains equal.} 24. Bxc4 bxc4 25. Qxc4 Nxd5 26. Qxd5 Qb7 (26... Qxc6 27. Qxc6 Rxc6 28. Rc1 $14)) 24. cxb5 $16 {[%emt 0:00:00]} a5 {[%emt 0:00:00]} 25. a4 {[%emt 0:00:00]} (25. Nxa5 $2 Bh6 26. Bd3 (26. Bxh6 $2 Re1+) 26... Rxe3 $19 (26... Bxe3 27. Re1 $17)) 25... Nfd7 {[%emt 0:00:00]} 26. Bd2 {[%emt 0:00:00]} (26. Nxa5 $2 Nc5 27. Qa3 (27. Bxc5 $2 Re1+ 28. Ka2 Qxc5 $19) 27... Ncxa4 $19 (27... Nbxa4 28. Nc4 $17)) 26... Nc5 {[%emt 0:00:00]} 27. Qc2 {[%emt 0:00:00]} Nbxa4 {[%emt 0:00:00]} 28. Bxa5 {[%emt 0:00:00]} (28. g4 $1 $16 {[%cal Rg4h5]} h4 29. Rg2 (29. Bxa5 Qb7 $11)) 28... Qd7 $15 {[%emt 0:00:54]} 29. b6 {[%emt 0:01:21]} (29. b3 Re3 30. Bc4 (30. bxa4 $2 Ra3 $19) 30... Nc3+ 31. Kc1 (31. Bxc3 $2 Rxc3 32. Qd2 Qf5+ 33. Ka2 Rc2+ 34. Ka3 Bb2+ 35. Kb4 Rxd2 $19) 31... Qe8 $19 (31... Nxb5 32. Bxb5 Nxb3+ 33. Kd1 $19)) (29. Bc4 $1 $15 Nxb2 30. h4 Nxc4 31. Qxc4 Qf5+ 32. Qc2 (32. Ka2 $2 Re2+ 33. Ka3 Bb2+ 34. Kb4 Kh7 $19)) 29... Re3 {[%emt 0:02:10]} (29... Nxb2 $17 {...Nba4 is the strong threat.} 30. Bb5 Qb7) 30. Bc4 $2 {[%emt 0:01:33][%mdl 8192]} (30. Bb5 $15 Rb3 31. Bxa4 Rxb2+ 32. Qxb2 Bxb2 33. Bb5) 30... Nxb2 {[%emt 0:00:10]} (30... Bxb2 $19 {and Black stays clearly on top. ...Ra3 would now be deadly.} 31. Qf2 Ra3) 31. Ka2 $17 {[%emt 0:00:34] [#]} Qb7 $1 {[%emt 0:01:45]} 32. Rb1 $2 {[%emt 0:00:28] [#]} (32. Bb5 $17 Re8 (32... Rb3 $2 33. Qxb3 Nxb3 34. Kxb3 $18) 33. Rc1) 32... Nba4 $1 $19 {[%emt 0:00:01]} 33. Re1 $2 {[%emt 0:00:33]} (33. Bb5 Nc3+ (33... Nxb6 34. Bf1 $15) 34. Bxc3 Rxc3 35. Qd1) 33... Nc3+ $19 {[%emt 0:01:08]} 34. Bxc3 {[%emt 0:00:22]} Rxc3 {[%emt 0:00:01]} 35. Re8+ {[%emt 0:00:35]} Kh7 {[%emt 0:00:01]} 36. Qe2 {[%emt 0:00:29]} Qxb6 {[%emt 0:01:14]} (36... Rc1 $142 37. Ka3 Qxb6) 37. Rb8 {[%emt 0:00:21]} Rc1 {[%emt 0:00:32]} 38. Ka3 {[%emt 0:00:29]} Ra1+ {[%emt 0:00:46]} 39. Ba2 {[%emt 0:00:05]} Bb2+ {[%emt 0:00:28]} 40. Qxb2 {[%emt 0:00:29]} Qa6+ {[%emt 0:00:04]} 0-1

[Event "3rd President Cup-A 2024"]
[Site "Tashkent"]
[Date "2024.11.26"]
[Round "6.7"]
[White "Madaminov, Mukhiddin"]
[Black "Vokhidov, Shamsiddin"]
[Result "0-1"]
[ECO "A28"]
[WhiteElo "2501"]
[BlackElo "2681"]
[Annotator "TA"]
[PlyCount "82"]
[EventDate "2024.11.22"]
[EventType "swiss"]
[EventCountry "UZB"]
[SourceTitle "playchess.com"]
[Source "ChessBase"]
[SourceQuality "1"]
[TimeControl "5400+30"]

{[%evp 10,82,9,0,0,0,15,-20,0,0,0,0,16,9,17,0,13,17,22,6,19,0,11,0,0,-26,-25,-21,-24,-71,-102,-83,-98,-98,-90,-93,-68,-94,-80,-216,-197,-197,-202,-213,-203,-329,-328,-314,-300,-344,-333,-350,-352,-418,-410,-513,-509,-617,-626,-641,-654,-622,-500,-580,-621,-985,-941,-11394,-6662,-29964,-29965,-29976,-29977,-29977,-29978]} 1. c4 {[%emt 0:00:56]} Nf6 {[%emt 0:00:21]} 2. Nc3 {[%emt 0:00:42]} e5 {[%emt 0:00:06]} 3. Nf3 {[%emt 0:00:32]} Nc6 {[%emt 0:00:06]} 4. e4 {[%emt 0:00:09]} Bb4 {[%emt 0:00:33]} 5. d3 {[%emt 0:03:57]} d6 {[%emt 0:00:15]} 6. Be2 {[%emt 0:00:05] A28: English Opening: Four Knights Variation.} a5 {[%emt 0:04:36]} 7. O-O {[%emt 0:04:54]} Bc5 {[%emt 0:00:25]} 8. Nd2 {[%emt 0:02:31]} Nd4 {[%emt 0:14:08]} 9. Nb3 {[%emt 1:21:14]} Nxb3 {[%emt 0:01:06]} 10. axb3 {[%emt 0:00:00]} O-O {[%emt 0:03:16]} 11. Kh1 {[%emt 0:00:00]} c6 $146 {[%emt 0:01:10]} ({Predecessor:} 11... h6 12. f4 c6 13. f5 d5 14. Qe1 dxe4 15. dxe4 Bd4 16. Bf3 Nh7 17. Ne2 Bc5 {0-1 Adla,D (2383)-Svane,R (2623) Titled Tuesday intern op 30th May Late blitz 2023 (2)}) 12. f4 {[%emt 0:00:00]} Bd7 {[%emt 0:10:54]} 13. Na4 {[%emt 0:00:00]} Bb4 {[%emt 0:06:41]} 14. Be3 {[%emt 0:00:00]} Re8 {[%emt 0:05:58]} 15. Nc3 {[%emt 0:00:00]} b5 {[%emt 0:02:57]} 16. Na2 {[%emt 0:00:00]} Bc5 {[%emt 0:03:10]} 17. fxe5 {[%emt 0:00:00]} Bxe3 {[%emt 0:02:17]} 18. exf6 {[%emt 0:00:00]} g6 {[%emt 0:04:08]} (18... gxf6 $6 19. cxb5 cxb5 20. Bg4 $16) 19. Bg4 {[%emt 0:00:00]} (19. cxb5 $11 cxb5 20. Nc3) 19... Bxg4 $17 {[%emt 0:03:29]} 20. Qxg4 {[%emt 0:00:00]} bxc4 {[%emt 0:00:28]} 21. bxc4 {[%emt 0:00:00]} Re6 {[%emt 0:01:33]} 22. Nc3 {[%emt 0:00:00]} Bd4 {[%emt 0:02:35]} 23. e5 {[%emt 0:00:00]} Bxe5 {[%emt 0:01:23]} (23... Bxc3 {simplifies} 24. bxc3 dxe5 25. Qf3 a4) 24. Ne4 {[%emt 0:00:00]} (24. d4 $17 {was necessary.} Bxf6 25. Qf3) 24... d5 {[%emt 0:02:46]} ({And not} 24... Bxf6 25. Qf3 Kg7 (25... Bxb2 $2 {loses.} 26. Qxf7+ Kh8 27. Qxe6 $18) 26. Nxf6 Rxf6 (26... Qxf6 27. Qxc6 Qd8 28. b4 $14) 27. Qxc6 $11) 25. cxd5 {[%emt 0:00:00]} cxd5 {[%emt 0:00:07]} 26. Nc5 {[%emt 0:00:00]} Rxf6 {[%emt 0:00:59]} 27. d4 {[%emt 0:00:11]} (27. Qe2 {was worth a try.} Bxh2 28. Rxf6 Qxf6 29. Kxh2 Qd6+ 30. Kh1 Qxc5 31. Qe5) 27... h5 $19 {[%emt 0:00:49]} 28. Qe2 {[%emt 0:01:09]} Bxd4 {[%emt 0:00:16]} 29. Nd3 {[%emt 0:00:09]} Rxf1+ {[%emt 0:01:16]} 30. Rxf1 {[%emt 0:00:06]} Qd7 {[%emt 0:00:10]} 31. Nf4 {[%emt 0:01:47]} Re8 {[%emt 0:00:58]} 32. Qd2 {[%emt 0:00:21]} Qb5 {[%emt 0:00:43]} 33. Rb1 {[%emt 0:00:29]} Re4 {[%emt 0:01:08]} 34. g3 {[%emt 0:01:13]} a4 {[%emt 0:00:15]} 35. Qd3 {[%emt 0:00:57]} Qc4 {[%emt 0:03:25]} 36. Qd1 {[%emt 0:01:48]} Kg7 {[%emt 0:01:46]} 37. Qf3 {[%emt 0:01:51]} Bxb2 {[%emt 0:01:24]} 38. Rf1 {[%emt 0:00:21]} Rxf4 {[%emt 0:01:46]} 39. gxf4 {[%emt 0:00:12]} a3 {[%emt 0:00:16]} 40. Qg2 {[%emt 0:00:07]} Qxf1+ {[%emt 0:00:32]} 41. Qxf1 {[%emt 0:00:17]} a2 {[%emt 0:00:03]} 0-1

[Event "3rd President Cup-A 2024"]
[Site "Tashkent"]
[Date "2024.11.26"]
[Round "6.8"]
[White "Yakubboev, Nodirbek"]
[Black "Nikitenko, Mihail"]
[Result "1-0"]
[ECO "D37"]
[WhiteElo "2668"]
[BlackElo "2490"]
[Annotator "RC"]
[PlyCount "137"]
[EventDate "2024.11.22"]
[EventType "swiss"]
[EventCountry "UZB"]
[SourceTitle "playchess.com"]
[Source "ChessBase"]
[SourceQuality "1"]
[TimeControl "5400+30"]

1. d4 {[%emt 0:00:12]} d5 {[%emt 0:00:05]} 2. c4 {[%emt 0:00:05]} e6 {[%emt 0:00:06]} 3. Nf3 {[%emt 0:00:05]} Nf6 {[%emt 0:00:08]} 4. Nc3 {[%emt 0:00:05]} a6 {[%emt 0:00:06]} 5. c5 {[%emt 0:03:48]} b6 {[%emt 0:01:38]} 6. cxb6 {[%emt 0:00:06]} cxb6 {[%emt 0:00:03]} 7. Bf4 {[%emt 0:01:37]} Bd6 {[%emt 0:00:06]} 8. e3 {[%emt 0:00:06]} O-O {[%emt 0:01:01]} 9. Bd3 {[%emt 0:00:38]} Bb7 {[%emt 0:00:07]} 10. Rc1 {[%emt 0:03:14]} Nc6 {[%emt 0:00:16]} 11. Bg5 {[%emt 0:03:50]} h6 {[%emt 0:04:59]} 12. Bh4 {[%emt 0:00:10]} Be7 {[%emt 0:00:12]} 13. O-O {[%emt 0:02:09]} Nd7 {[%emt 0:06:01]} 14. Bxe7 {[%emt 0:19:05]} Qxe7 {[%emt 0:00:31]} 15. Ne2 {[%emt 0:02:04]} Qd6 {[%emt 0:02:38]} 16. Rc3 {[%emt 0:02:39]} Rfc8 {[%emt 0:00:56]} 17. Bb1 {[%emt 0:03:22]} Nf6 {[%emt 0:00:53]} 18. Nf4 {[%emt 0:03:15]} a5 {[%emt 0:03:46]} 19. Qb3 {[%emt 0:08:43]} Ne4 {[%emt 0:06:48]} 20. Rcc1 {[%emt 0:08:04]} Qb4 {[%emt 0:01:58]} 21. Qxb4 {[%emt 0:04:01]} axb4 {[%emt 0:00:07]} 22. Rfd1 {[%emt 0:01:43]} Nd6 {[%emt 0:04:07]} 23. Ne5 {[%emt 0:06:17]} Na5 {[%emt 0:04:25]} 24. Nd7 {[%emt 0:05:46]} Rxc1 {[%emt 0:07:53]} 25. Rxc1 {[%emt 0:00:41]} Bc6 {[%emt 0:00:05]} 26. Ne5 {[%emt 0:03:15]} Bb5 {[%emt 0:00:07]} 27. b3 {[%emt 0:01:14]} Be8 {[%emt 0:04:16]} 28. Bd3 {[%emt 0:06:04]} Ra7 {[%emt 0:06:35]} 29. h4 {[%emt 0:00:51]} f6 {[%emt 0:01:04]} 30. Neg6 {[%emt 0:06:46]} Kf7 {[%emt 0:03:59]} 31. Be2 {[%emt 0:00:09]} Bd7 {[%emt 0:03:11]} 32. Bh5 {[%emt 0:00:04]} Kg8 {[%emt 0:00:06]} 33. Bg4 {[%emt 0:00:18]} Kf7 {[%emt 0:04:46]} 34. Bh5 {[%emt 0:00:03]} Kg8 {[%emt 0:00:22]} 35. Nd3 {[%emt 0:01:20]} Nc6 {[%emt 0:00:28]} 36. Ngf4 {[%emt 0:00:03]} g5 {[%emt 0:07:15]} 37. hxg5 {[%emt 0:00:49]} hxg5 {[%emt 0:00:05]} 38. Nxe6 {[%emt 0:00:08]} Ne4 {[%emt 0:00:03]} 39. f4 {[%emt 0:01:51]} Nc3 {[%emt 0:01:33]} 40. f5 {[%emt 0:00:12]} Nxa2 {[%emt 0:00:48]} 41. Rc2 {[%emt 0:00:45]} Ne7 {[%emt 0:04:28]} 42. Rf2 {[%emt 0:02:49]} Nc3 {[%emt 0:03:26]} 43. g4 {[%emt 0:00:06]} Ne4 {[%emt 0:02:48]} 44. Rc2 {[%emt 0:00:02]} Ng3 {[%emt 0:01:57]} 45. Rc7 {[%emt 0:00:36]} Rxc7 {[%emt 0:00:46]} 46. Nxc7 {[%emt 0:00:07]} Nxh5 {[%emt 0:01:56]} 47. gxh5 {[%emt 0:00:13]} Bxf5 {[%emt 0:00:09]} 48. Nxb4 {[%emt 0:00:01]} Be4 {[%emt 0:00:07]} 49. Na8 {[%emt 0:00:47]} Nf5 {[%emt 0:00:25]} 50. Nxb6 {[%emt 0:01:36]} Nxe3 {[%emt 0:00:13]} 51. Nd7 {[%emt 0:01:35]} Kf7 {[%emt 0:00:58]} 52. Nc5 {[%emt 0:00:11]} Nf5 {[%emt 0:04:09]} 53. Nc6 {[%emt 0:01:45]} Nd6 {[%emt 0:00:03]} 54. b4 {[%emt 0:00:33]} Bf3 {[%emt 0:00:19]} 55. h6 {[%emt 0:00:45]} Kg6 {[%emt 0:00:37]} 56. Kf2 {[%emt 0:00:24]} g4 {[%emt 0:01:32]} 57. Na7 {[%emt 0:00:11]} f5 {[%emt 0:04:13]} 58. b5 {[%emt 0:00:25]} f4 {[%emt 0:00:18]} 59. Nd3 {[%emt 0:00:43]} Kxh6 {[%emt 0:00:31]} 60. Nxf4 {[%emt 0:00:05]} Kg5 {[%emt 0:00:04]} 61. Nd3 {[%emt 0:01:42]} Be4 {[%emt 0:02:14]} 62. Nc5 {[%emt 0:00:23]} Nc4 {[%emt 0:00:03]} 63. Kg3 {[%emt 0:00:25]} Bf5 {[%emt 0:01:29]} 64. Na4 {[%emt 0:00:43]} Nd6 {[%emt 0:02:11]} 65. b6 {[%emt 0:00:12]} Be4 {[%emt 0:02:37]} 66. Nc5 {[%emt 0:00:09]} Bf3 {[%emt 0:00:59]} 67. Nb5 {[%emt 0:00:57]} Nf5+ {[%emt 0:01:12]} 68. Kf2 {[%emt 0:00:05]} Ne7 {[%emt 0:00:02]} 69. Na7 {[%emt 0:00:20]} 1-0

[Event "3rd President Cup-A 2024"]
[Site "Tashkent"]
[Date "2024.11.26"]
[Round "6.9"]
[White "Urazayev, Arystanbek"]
[Black "Puranik, Abhimanyu"]
[Result "0-1"]
[ECO "C07"]
[WhiteElo "2480"]
[BlackElo "2652"]
[Annotator "TA"]
[PlyCount "78"]
[EventDate "2024.11.22"]
[EventType "swiss"]
[EventCountry "UZB"]
[SourceTitle "playchess.com"]
[Source "ChessBase"]
[SourceQuality "1"]
[TimeControl "5400+30"]

{[%evp 10,78,11,16,18,12,13,9,21,18,24,14,24,16,13,0,0,13,16,16,19,6,0,0,0,0,43,0,0,-7,0,0,0,0,0,0,0,0,-11,-5,0,0,0,0,0,0,0,0,0,0,0,0,0,0,0,-12,-19,-22,-38,-152,-137,-227,-232,-546,-541,-539,-502,-29987,-29988,-29986,-29986]} 1. e4 {[%emt 0:00:02]} e6 {[%emt 0:00:16]} 2. d4 {[%emt 0:00:42]} d5 {[%emt 0:00:06]} 3. Nd2 {[%emt 0:02:32]} c5 {[%emt 0:01:30]} 4. Ngf3 {[%emt 0:00:08]} cxd4 {[%emt 0:00:10]} 5. exd5 {[%emt 0:00:14]} Qxd5 {[%emt 0:00:34]} 6. Bc4 {[%emt 0:00:10]} Qd7 {[%emt 0:01:50]} 7. O-O {[%emt 0:03:57]} Nc6 {[%emt 0:00:07]} 8. Nb3 {[%emt 0:00:13][%cal Rb3d4]} a6 {[%emt 0:00:46] The position is equal.} 9. Nbxd4 {[%emt 0:00:46]} Nxd4 {[%emt 0:01:25]} 10. Nxd4 {[%emt 0:00:03]} Qc7 {[%emt 0:00:38]} 11. Bd3 {[%emt 0:06:10]} Nf6 {[%emt 0:04:48]} 12. Re1 {[%emt 0:01:22]} Bd6 {[%emt 0:00:59]} 13. h3 {[%emt 0:04:55]} Bh2+ {[%emt 0:00:30]} 14. Kh1 {[%emt 0:00:30] Threatens to win with g3.} Bf4 {[%emt 0:00:30]} 15. Qf3 {[%emt 0:00:30]} Bxc1 {[%emt 0:00:30]} 16. Raxc1 {[%emt 0:00:30]} O-O {[%emt 0:06:13]} 17. c3 {[%emt 0:21:24]} b6 {[%emt 0:14:30]} 18. Qe2 {[%emt 0:35:39]} (18. Qxa8 {is more complex.} Bb7 19. Qxf8+ Kxf8 20. Rcd1) 18... Rd8 {[%emt 0:02:35]} 19. Nf3 {[%emt 0:02:20]} Bb7 {[%emt 0:04:41]} 20. Ne5 {[%emt 0:00:11]} Rd5 {[%emt 0:02:34]} 21. Rcd1 {[%emt 0:02:38]} Rad8 {[%emt 0:02:13]} 22. Bc2 {[%emt 0:02:19]} h6 {[%emt 0:07:00]} 23. Rxd5 {[%emt 0:00:51]} Rxd5 {[%emt 0:10:49]} 24. Qe3 {[%emt 0:01:38]} b5 {[%emt 0:06:50]} 25. Kg1 {[%emt 0:00:38]} Rd8 {[%emt 0:04:47]} 26. Re2 {[%emt 0:04:41]} g5 {[%emt 0:07:05] [#] And now ...Nd5 would win.} 27. Ng4 {[%emt 0:03:38]} Nxg4 {[%emt 0:00:19]} 28. hxg4 {[%emt 0:00:02]} Qc4 {[%emt 0:01:17]} 29. f3 $1 {[%emt 0:01:46]} Qxa2 {[%emt 0:01:00]} 30. Qe5 $1 {[%emt 0:03:54] Against Qd5. Qf6 is the strong threat.} Qd5 {[%emt 0:00:00]} (30... Qxb2 $2 31. Bh7+ Kxh7 32. Rxb2 $18) 31. Qf6 {[%emt 0:00:22]} Qc5+ {[%emt 0:02:33]} 32. Kh1 {[%emt 0:00:18]} (32. Kf1 $5 Qf8 $8 33. f4 gxf4 34. g5 $11) 32... Qf8 {[%emt 0:00:10]} 33. f4 {[%emt 0:00:57]} gxf4 {[%emt 0:03:31]} 34. g5 {[%emt 0:00:18]} (34. Qxf4 $15 Rd5 35. Rd2) 34... Rd5 $17 {[%emt 0:02:53]} 35. Rxe6 {[%emt 0:00:02]} (35. g6 $17) 35... Rxg5 $19 {[%emt 0:01:54] Strongly threatening ...Rh5+.} ({Stronger than} 35... fxe6 36. Qg6+ (36. Bh7+ Kxh7 37. Qxf8 Rxg5 $11) 36... Qg7 37. Qe8+ Qf8 38. Qg6+ (38. Qxe6+ $2 Qf7 $19) (38. Bh7+ Kxh7 39. Qxf8 Rxg5 $11) 38... Qg7 39. Qe8+ Qf8 40. Qg6+ $11 (40. Qxe6+ $2 Qf7 $19) (40. Bh7+ Kxh7 41. Qxf8 Rxg5 $11)) 36. Re7 $2 {[%emt 0:00:39]} (36. Re2) 36... Bxg2+ {[%emt 0:00:45]} 37. Kh2 {[%emt 0:00:06][%cal Oc2h7]} Bd5 {[%emt 0:00:07] ( -> ...Qc8)} 38. Bd1 {[%emt 0:01:49] [#]} (38. Re5 $19 Rg2+ 39. Kh3 Rxc2 40. Rxd5 Qc8+ (40... Rxb2 $2 {is the wrong capture.} 41. Rd8 $18) 41. Qf5 Qxf5+ 42. Rxf5) 38... Rg2+ {[%emt 0:00:10]} 39. Kh3 {[%emt 0:00:03]} Qc8+ {[%emt 0:00:08] Weighted Error Value: White=0.50/Black=0.02 (flawless) .  Mistake:       	White=4     	---        Inaccurate:     	White=1     	Black=1      OK:         	White=15    	Black=13     Best:        	White=1     	Black=5      Strong:       	White=2     	---} 0-1

[Event "3rd President Cup-A 2024"]
[Site "Tashkent"]
[Date "2024.11.26"]
[Round "6.9"]
[White "Urazayev, Arystanbek"]
[Black "Puranik, Abhimanyu"]
[Result "*"]
[ECO "C07"]
[WhiteElo "2480"]
[BlackElo "2652"]
[Annotator "RC"]
[PlyCount "28"]
[EventDate "2024.11.22"]
[EventType "swiss"]
[EventCountry "UZB"]
[SourceTitle "playchess.com"]
[Source "ChessBase"]
[SourceQuality "1"]
[TimeControl "5400+30"]

1. e4 {[%emt 0:00:02]} e6 {[%emt 0:00:16]} 2. d4 {[%emt 0:00:42]} d5 {[%emt 0:00:06]} 3. Nd2 {[%emt 0:02:32]} c5 {[%emt 0:01:30]} 4. Ngf3 {[%emt 0:00:08]} cxd4 {[%emt 0:00:10]} 5. exd5 {[%emt 0:00:14]} Qxd5 {[%emt 0:00:34]} 6. Bc4 {[%emt 0:00:10]} Qd7 {[%emt 0:01:50]} 7. O-O {[%emt 1:30:12]} Nc6 {[%emt 0:00:07]} 8. Nb3 {[%emt 0:00:13]} a6 {[%emt 0:00:46]} 9. Nbxd4 {[%emt 0:00:46]} Nxd4 {[%emt 0:01:25]} 10. Nxd4 {[%emt 0:00:03]} Qc7 {[%emt 0:00:38]} 11. Bd3 {[%emt 0:06:10]} Nf6 {[%emt 0:04:48]} 12. Re1 {[%emt 0:01:22]} Bd6 {[%emt 0:00:59]} 13. Kh1 Bxh2 {[%emt 0:06:26]} 14. Qf3 {[%emt 0:25:38]} Bf4 {[%emt 0:00:13]} *

[Event "3rd President Cup-A 2024"]
[Site "Tashkent"]
[Date "2024.11.26"]
[Round "6.10"]
[White "Mamedov, Edgar"]
[Black "Pranesh M"]
[Result "1/2-1/2"]
[ECO "E46"]
[WhiteElo "2448"]
[BlackElo "2580"]
[Annotator "TA"]
[PlyCount "99"]
[EventDate "2024.11.22"]
[EventType "swiss"]
[EventCountry "UZB"]
[SourceTitle "playchess.com"]
[Source "ChessBase"]
[SourceQuality "1"]
[TimeControl "5400+30"]

{[%evp 14,99,7,0,0,0,3,-16,0,-2,15,8,3,2,31,27,31,18,49,13,18,18,18,16,27,35,27,27,30,31,31,30,32,29,31,19,19,18,22,22,37,29,27,0,35,0,17,17,49,35,71,0,59,29,24,18,55,27,34,0,44,20,22,16,29,14,6,12,6,6,10,6,6,14,6,6,6,6,6,6,6,0,0,0,13,13,20,0]} 1. d4 {[%emt 0:00:14]} Nf6 {[%emt 0:00:11]} 2. c4 {[%emt 0:00:08]} e6 {[%emt 0:00:09]} 3. Nc3 {[%emt 0:00:32]} Bb4 {[%emt 0:00:09]} 4. e3 {[%emt 0:00:26]} O-O {[%emt 0:00:09]} 5. Nge2 {[%emt 0:00:32]} d5 {[%emt 0:00:10]} 6. a3 {[%emt 0:00:56]} Bd6 {[%emt 0:00:08]} 7. c5 {[%emt 0:05:00]} Be7 {[%emt 0:00:07]} 8. b4 {[%emt 0:00:17]} c6 {[%emt 0:00:13]} 9. Ng3 {[%emt 0:02:29]} Nbd7 {[%emt 0:05:20]} 10. f4 {[%emt 0:05:14]} Ne8 {[%emt 0:07:55][%cal Bf6e8,Be8c7,Bc7b5][%mdl 32]} 11. Bd3 {[%emt 0:01:02]} f5 {[%emt 0:02:38]} 12. O-O {[%emt 0:03:58]} b6 {[%emt 0:03:25]} 13. Bd2 {[%emt 0:05:34]} Nc7 {[%emt 0:05:39]} 14. Qe2 {[%emt 0:07:12]} a5 {[%emt 0:02:52]} 15. Rfc1 {[%emt 0:13:06]} a4 {[%emt 0:07:41]} 16. cxb6 {[%emt 0:09:27]} Nxb6 {[%emt 0:00:36]} 17. Nd1 {[%emt 0:01:47]} Qd7 {[%emt 0:03:11]} 18. Nb2 {[%emt 0:02:02]} Nb5 {[%emt 0:09:24]} 19. Be1 {[%emt 0:02:05]} Ba6 {[%emt 0:03:09]} 20. Nf1 {[%emt 0:02:19][%cal Bg3f1,Bf1d2,Bd2f3][%mdl 32]} Qb7 {[%emt 0:03:16]} 21. Nd2 {[%emt 0:02:50]} Nd6 {[%emt 0:03:00]} 22. Bxa6 {[%emt 0:00:53]} Rxa6 {[%emt 0:00:06]} 23. Rc2 {[%emt 0:02:56]} Raa8 {[%emt 0:03:14]} 24. Rac1 {[%emt 0:04:48][%cal Ob2d3]} Rfc8 {[%emt 0:00:16]} 25. Qd3 {[%emt 0:03:19]} Rc7 {[%emt 0:01:37]} 26. Nf3 {[%emt 0:01:52]} Rac8 {[%emt 0:01:29]} 27. Ra1 {[%emt 0:02:46]} Ra8 {[%emt 0:02:26]} 28. Rac1 {[%emt 0:00:05]} Rac8 {[%emt 0:00:05]} 29. Nd2 {[%emt 0:01:16]} Nb5 {[%emt 0:01:57]} 30. h3 {[%emt 0:00:47]} Nd6 {[%emt 0:01:24]} 31. Nf3 {[%emt 0:00:10]} Bf6 {[%emt 0:02:49]} 32. Nd2 {[%emt 0:03:39]} Be7 {[%emt 0:00:56]} 33. Ra1 {[%emt 0:00:32]} Ra8 {[%emt 0:00:26]} 34. Qe2 {[%emt 0:03:39]} Rac8 {[%emt 0:02:22]} 35. Nf3 {[%emt 0:00:53]} Bf6 {[%emt 0:01:48]} 36. Nd2 {[%emt 0:00:29]} Be7 {[%emt 0:00:09]} 37. Kh1 {[%emt 0:00:09]} Ra8 {[%emt 0:00:29]} 38. Rac1 {[%emt 0:00:21]} Qc8 {[%emt 0:01:12]} 39. Qd3 {[%emt 0:00:22]} Qe8 {[%emt 0:00:44] The position is equal.} 40. Kg1 {[%emt 0:00:51]} Rac8 {[%emt 0:27:39]} 41. Nf3 {[%emt 0:03:48]} Bf6 {[%emt 0:00:00]} 42. Bf2 {[%emt 0:03:22]} Nb5 {[%emt 0:00:00]} 43. Ra1 {[%emt 0:00:12]} Nd6 {[%emt 0:00:00]} 44. Nd2 {[%emt 0:00:39]} h6 {[%emt 0:00:00]} 45. Qe2 {[%emt 0:01:09]} Ra8 {[%emt 0:00:00]} 46. Nd3 {[%emt 0:01:07]} Be7 {[%emt 0:00:00]} 47. Ne5 {[%emt 0:01:10]} Bf6 {[%emt 0:00:00]} 48. Nd3 {[%emt 0:00:02]} Be7 {[%emt 0:00:00]} 49. Nc5 {[%emt 0:00:43]} Qc8 {[%emt 0:00:00]} 50. Nd3 {[%emt 0:01:34] Weighted Error Value: White=0.10 (very precise) /Black=0.06 (flawless) .  Inaccurate:     	White=4     	Black=5      OK:         	White=11    	Black=16} 1/2-1/2